fUST/lending_fUST_20250826
["ID","MTS","AMOUNT","RATE_DAILY","PERIOD"]
[381392083,1756184975315,355.15307048,0.0002508,2]
[381392084,1756184975428,355.15307048,0.00026806,6]
[381392135,1756185031897,-2756.6504824,0.00028517,2]
[381392137,1756185031907,-355.15307048,0.00028533,10]
[381392139,1756185031916,-1929.4870512,0.00028549,2]
[381392141,1756185031926,-863.251875,0.00028571,2]
[381392143,1756185031935,-160.0184647,0.00029899,2]
[381392145,1756185031945,-300.0,0.00029988,2]
[381392147,1756185031956,-3266.88457299,0.00029989,6]
[381392149,1756185031966,-500.0,0.00029989,2]
[381392151,1756185031976,-173.06884882,0.00029989,2]
[381392153,1756185031985,-181.81789709,0.00029989,2]
[381392155,1756185031995,-154.00558293,0.00029989,2]
[381392157,1756185032004,-500.0,0.00029989,2]
[381392159,1756185032014,-500.0,0.00029989,2]
[381392161,1756185032023,-500.0,0.00029989,2]
[381392163,1756185032033,-574.51365045,0.00029989,2]
[381392165,1756185032042,-500.0,0.00029989,2]
[381392167,1756185032051,-1647.51517858,0.00029989,2]
[381392169,1756185032060,-6156.6102411,0.0002999,2]
[381392171,1756185032072,-465.3158645,0.0002999,2]
[381392522,1756185042821,-96.01040001,0.0002999,2]
[381400279,1756185131622,164.0,0.00027,7]
[381400281,1756185135771,-165.0,0.00028767,14]
[381400282,1756185143619,529.4218694,0.00028,10]
[381400284,1756185162130,358.41918366,0.000199,2]
[381400285,1756185162223,358.41918343,0.00021627,2]
[381400286,1756185162358,358.41918343,0.00023353,2]
[381400287,1756185162470,358.41918343,0.0002508,2]
[381400288,1756185162619,358.41918343,0.00026806,6]
[381400290,1756185164705,-243.18414659,0.00028533,10]
[381400291,1756185169806,-152.0,0.00028433,10]
[381400292,1756185336177,538.93681694,0.000199,2]
[381400293,1756185336313,538.93681669,0.00021627,2]
[381400294,1756185336475,538.93681669,0.00023353,2]
[381400295,1756185336534,538.93681669,0.0002508,2]
[381400296,1756185336651,538.93681669,0.00026806,6]
[381400297,1756185394827,1593.14195292,0.000273,120]
[381400298,1756185394849,10000.01,0.000273,120]
[381400299,1756185394871,10000.01,0.000273,120]
[381400300,1756185394892,10000.01,0.000273,120]
[381400301,1756185394914,8406.82804708,0.000273,120]
[381400302,1756185397688,320.0,0.00027397,120]
[381400304,1756185514149,568.76097549,0.000199,2]
[381400305,1756185514268,568.76097545,0.00021627,2]
[381400306,1756185514383,135.66000198,0.00023353,2]
[381400307,1756185514410,433.10097347,0.00023353,2]
[381400308,1756185514485,568.76097545,0.0002508,2]
[381400309,1756185514615,568.76097545,0.00026806,6]
[381400312,1756185697699,555.75170158,0.000199,2]
[381400313,1756185697820,555.75170157,0.00021627,2]
[381400314,1756185697922,555.75170157,0.00023353,2]
[381400315,1756185698021,555.75170157,0.0002508,2]
[381400316,1756185698135,555.75170157,0.00026806,6]
[381400317,1756185701853,-47.0,0.00028433,10]
[381400318,1756185701881,-152.0,0.00028442,120]
[381400319,1756185788413,166.066347,0.00013699,2]
[381400320,1756185874739,536.64953842,0.000199,2]
[381400321,1756185874880,536.6495384,0.00021627,2]
[381400322,1756185874948,536.6495384,0.00023353,2]
[381400323,1756185875048,536.6495384,0.0002508,2]
[381400324,1756185875151,536.6495384,0.00026806,6]
[381400325,1756185875890,-199.0,0.00028342,120]
[381400326,1756185912908,222.977209,0.00025778,2]
[381400327,1756185913625,158.12996392,0.00026044,2]
[381400328,1756185953619,2011.0,0.000281,2]
[381400330,1756186054738,409.20735583,0.000199,2]
[381400331,1756186054767,104.67846027,0.000199,2]
[381400332,1756186054846,513.88581595,0.00021627,2]
[381400333,1756186054945,513.88581595,0.00023353,2]
[381400334,1756186055095,513.88581595,0.0002508,2]
[381400335,1756186055205,513.88581595,0.00026806,6]
[381400336,1756186056579,-168.94994048,0.00028342,120]
[381400337,1756186058309,-30.05005952,0.00028342,120]
[381400338,1756186058333,-199.0,0.00028342,120]
[381400339,1756186065261,-172.21994048,0.00028242,120]
[381400340,1756186067748,-26.78005952,0.00028242,120]
[381400341,1756186073639,7839.78827593,0.00018,2]
[381400342,1756186073663,10000.01,0.00018,2]
[381400343,1756186073687,10000.01,0.00018,2]
[381400344,1756186073710,10000.01,0.00018,2]
[381400345,1756186073735,10000.01,0.00018,2]
[381400346,1756186073758,10000.01,0.00018,2]
[381400347,1756186073782,10000.01,0.00018,2]
[381400348,1756186073806,4506.38931293,0.00018,2]
[381400349,1756186074790,-199.0,0.00028342,120]
[381400352,1756186083994,2756.09590356,0.00024774,2]
[381400353,1756186092744,160.0,0.000281,7]
[381400354,1756186102436,-361.00381139,0.00028433,2]
[381400355,1756186105262,-184.4719823,0.00028433,2]
[381400356,1756186109085,-196.84426583,0.00028433,2]
[381400357,1756186109111,-7.56923563,0.00028442,120]
[381400358,1756186110708,-3.43076437,0.00028442,120]
[381400359,1756186110731,-215.47372884,0.00028487,2]
[381400360,1756186115352,-216.15220916,0.00028487,2]
[381400361,1756186115382,-168.29647525,0.00028533,10]
[381400362,1756186117069,-199.0,0.00028533,10]
[381400363,1756186120481,364.97170803,0.0002,2]
[381400364,1756186120521,2212.55307548,0.0002,2]
[381400365,1756186120547,10000.01,0.0002,2]
[381400366,1756186120572,10000.01,0.0002,2]
[381400367,1756186120597,10000.01,0.0002,2]
[381400368,1756186120621,5442.09220952,0.0002,2]
[381400369,1756186121328,1704.06372877,0.00024,2]
[381400370,1756186121427,2853.85406171,0.0002,2]
[381400371,1756186121452,591.31583642,0.0002,2]
[381400372,1756186122115,-190.92246214,0.00028342,120]
[381400373,1756186123261,9408.69416358,0.00026,30]
[381400374,1756186123288,10000.01,0.00026,30]
[381400375,1756186123314,10000.01,0.00026,30]
[381400376,1756186123340,8146.70291375,0.00026,30]
[381400377,1756186126242,-8.07753786,0.00028342,120]
[381400378,1756186126266,-199.0,0.00028342,120]
[381400379,1756186126295,-55.68345598,0.00028533,10]
[381400380,1756186128427,-90.90588472,0.00028533,10]
[381400381,1756186128944,325.61060851,0.0002465,2]
[381400382,1756186128967,1853.30708625,0.0002465,2]
[381400383,1756186128990,8028.50925634,0.0002465,2]
[381400384,1756186129027,505.29454774,0.0002465,2]
[381400385,1756186129055,456.7293854,0.00024,2]
[381400386,1756186130922,1009.47681052,0.00019063,2]
[381400387,1756186130945,10000.01,0.00019063,2]
[381400388,1756186130969,10000.01,0.00019063,2]
[381400389,1756186130991,6627.8948664,0.00019063,2]
[381400390,1756186137159,160.0,0.00028,8]
[381400391,1756186140705,160.0,0.00028,9]
[381400392,1756186152730,160.0,0.00028,10]
[381400393,1756186171534,158.32463638,0.00028,11]
[381400394,1756186229634,201.0,0.00025036,120]
[381400395,1756186231178,201.0,0.00026288,120]
[381400400,1756186232082,508.6511825,0.000199,2]
[381400402,1756186232118,508.65118243,0.00021627,2]
[381400406,1756186232168,508.65118243,0.00023353,2]
[381400410,1756186232189,-208.9775155,0.00028615,2]
[381400412,1756186232198,-168.94994048,0.00029186,2]
[381400415,1756186232208,-51.14128097,0.00029285,2]
[381400416,1756186232219,-1148.85871903,0.00029285,2]
[381400417,1756186232229,-5000.0,0.00029286,2]
[381400418,1756186232238,-300.0,0.00029581,2]
[381400419,1756186232247,-300.0,0.00029581,2]
[381400421,1756186232256,-300.0,0.00029581,2]
[381400423,1756186232266,-300.0,0.00029581,2]
[381400424,1756186232275,-300.0,0.00029581,2]
[381400425,1756186232285,-5000.0,0.00029582,2]
[381400426,1756186232294,-17689.52717395,0.00029612,2]
[381400427,1756186232328,508.65118243,0.0002508,2]
[381400428,1756186232379,297.18576743,0.00026806,6]
[381400432,1756186232408,211.465415,0.00026806,6]
[381400554,1756186237582,343.09337309,0.000281,2]
[381400560,1756186238009,-508.65118243,0.00028533,10]
[381400561,1756186238019,-3618.01608382,0.00029612,2]
[381400562,1756186238030,-5804.6487797,0.00029612,2]
[381400563,1756186238068,-5392.02758523,0.00029612,2]
[381400564,1756186238078,-268.0,0.00029981,2]
[381400565,1756186238087,-22588.54569781,0.00029985,2]
[381400567,1756186238098,-20039.1627005,0.00029987,2]
[381400568,1756186238107,-333.66194971,0.00029988,2]
[381400569,1756186238116,-838.23714245,0.00029988,2]
[381400570,1756186238126,-838.23714245,0.00029988,2]
[381400571,1756186238138,-838.23714245,0.00029988,2]
[381400572,1756186238147,-838.23714245,0.00029988,2]
[381400573,1756186238156,-838.23714245,0.00029988,2]
[381400574,1756186238165,-838.23714245,0.00029988,2]
[381400575,1756186238176,-838.23714245,0.00029988,2]
[381400576,1756186238185,-838.23714245,0.00029988,2]
[381400577,1756186238195,-838.23714245,0.00029988,2]
[381400578,1756186238204,-838.23714245,0.00029988,2]
[381400579,1756186238215,-838.23714245,0.00029988,2]
[381400580,1756186238224,-838.23714245,0.00029988,2]
[381400581,1756186238233,-838.23714245,0.00029988,2]
[381400582,1756186238242,-838.23714245,0.00029988,2]
[381400583,1756186238252,-838.23714245,0.00029988,2]
[381400584,1756186238261,-838.23714245,0.00029988,2]
[381400585,1756186238270,-838.23714245,0.00029988,2]
[381400586,1756186238279,-838.23714245,0.00029988,2]
[381400587,1756186238289,-231.97291615,0.0002999,2]
[381400588,1756186238299,-60117.4881016,0.0002999,2]
[381400589,1756186238308,-1198.46132035,0.0003,2]
[381400590,1756186238317,-125739.72205201,0.0003,2]
[381400591,1756186238327,-7674.91,0.0003,7]
[381400592,1756186238336,-479.40348728,0.0003,5]
[381400593,1756186238347,-500.01132545,0.0003,5]
[381400594,1756186238356,-500.0,0.0003,5]
[381400595,1756186238365,-200.0,0.0003,10]
[381400596,1756186238375,-200.0,0.0003,10]
[381400597,1756186238384,-200.0,0.0003,10]
[381400598,1756186238393,-200.0,0.0003,10]
[381400599,1756186238402,-200.0,0.0003,10]
[381400600,1756186238412,-200.0,0.0003,10]
[381400601,1756186238421,-200.0,0.0003,10]
[381400602,1756186238430,-200.0,0.0003,10]
[381400603,1756186238439,-200.0,0.0003,10]
[381400604,1756186238448,-200.0,0.0003,10]
[381400605,1756186238458,-200.0,0.0003,10]
[381400606,1756186238467,-200.0,0.0003,10]
[381400607,1756186238477,-200.0,0.0003,10]
[381400608,1756186238486,-200.0,0.0003,10]
[381400609,1756186238495,-220.276081,0.0003,10]
[381400610,1756186238504,-236.92,0.0003,7]
[381400611,1756186238513,-508.65118243,0.00030259,13]
[381400612,1756186238522,-500.0,0.0003036,5]
[381400613,1756186238532,-500.0,0.0003036,5]
[381400614,1756186238542,-216.09257821,0.00030485,2]
[381400615,1756186238554,-217.18350301,0.00030485,2]
[381400616,1756186238563,-376.39720582,0.00030485,2]
[381400617,1756186238572,-160.0,0.00030485,2]
[381400618,1756186238581,-417.15472785,0.00030485,2]
[381400619,1756186238591,-845.07960918,0.00030506,2]
[381400620,1756186238601,-300.0,0.00030589,20]
[381400621,1756186238610,-300.0,0.00030589,20]
[381400622,1756186238619,-300.0,0.00030589,20]
[381400623,1756186238629,-300.0,0.00030589,20]
[381400624,1756186238638,-300.0,0.00030589,20]
[381400625,1756186238647,-1000.0,0.00030908,5]
[381400626,1756186238657,-966.41483134,0.00030908,5]
[381400627,1756186238666,-157.0,0.00031,120]
[381400628,1756186238676,-1500.0,0.00031456,5]
[381400629,1756186238685,-1664.14009016,0.00031589,28]
[381400630,1756186238695,-1052.56,0.000316,7]
[381400631,1756186238704,-160.0,0.000317,40]
[381400632,1756186238713,-3018.09,0.00031779,60]
[381400633,1756186238723,-808535.05907901,0.00031779,20]
[381400634,1756186238732,-5980.15968823,0.00031779,7]
[381400635,1756186238741,-858.77630464,0.00031779,30]
[381400636,1756186238751,-49857.30073436,0.00031779,2]
[381400637,1756186238761,-1189.90614119,0.00031779,2]
[381400638,1756186238770,-882.10293333,0.00031779,30]
[381400639,1756186238779,-579.06340537,0.00031779,5]
[381400640,1756186238788,-6409.8759588,0.00031779,30]
[381400641,1756186238798,-68736.942135,0.00031779,2]
[381400642,1756186238807,-7256.93,0.000318,2]
[381400643,1756186238817,-420.0,0.00031896,2]
[381400644,1756186238826,-508.65118243,0.00031986,17]
[381400645,1756186238835,-1792.58905785,0.00032004,5]
[381400646,1756186238846,-1300.0,0.00032273,7]
[381400647,1756186238856,-232.53539143,0.00032273,7]
[381400648,1756186238865,-217.18350301,0.00032273,7]
[381400649,1756186238875,-1247.42,0.00032876,120]
[381400650,1756186238885,-164.0,0.00033,14]
[381400651,1756186238895,-7252.6717299,0.00033362,2]
[381400652,1756186238904,-153.46469,0.00033432,2]
[381400653,1756186238914,-153.706704,0.00033432,2]
[381400654,1756186238923,-508.65118243,0.00033712,21]
[381400655,1756186238933,-236.92,0.000338,7]
[381400656,1756186238942,-1618.2898046,0.00034199,2]
[381400657,1756186238951,-587.0,0.00034391,2]
[381400658,1756186238960,-1247.42,0.0003452,120]
[381400659,1756186238970,-20039.1627005,0.0003459,2]
[381400660,1756186238979,-7674.91,0.000346,14]
[381400661,1756186238989,-160.0,0.0003489,3]
[381400662,1756186238998,-1020.93801735,0.00034925,2]
[381400663,1756186239008,-2054.44322154,0.00035,4]
[381400664,1756186239017,-8172.20490516,0.00035,7]
[381400665,1756186239026,-1222.09039975,0.00035,120]
[381400666,1756186239036,-151.0,0.00035,7]
[381400667,1756186239046,-245.0,0.00035,7]
[381400668,1756186239055,-2434.74389024,0.00035026,2]
[381400669,1756186239065,-194.72792766,0.00035026,2]
[381400670,1756186239075,-250.0,0.00035026,2]
[381400671,1756186239085,-250.0,0.00035026,2]
[381400672,1756186239096,-271.97766584,0.00035026,2]
[381400673,1756186239105,-1000.0,0.00035026,2]
[381400674,1756186239115,-1000.0,0.00035026,2]
[381400675,1756186239124,-1000.0,0.00035026,2]
[381400676,1756186239135,-1000.0,0.00035026,2]
[381400677,1756186239144,-1000.0,0.00035026,2]
[381400678,1756186239153,-1000.0,0.00035026,2]
[381400679,1756186239163,-1000.0,0.00035026,2]
[381400680,1756186239173,-1000.0,0.00035026,2]
[381400681,1756186239182,-1000.0,0.00035026,2]
[381400682,1756186239191,-1000.0,0.00035026,2]
[381400683,1756186239200,-2524.82941417,0.00035081,2]
[381400684,1756186239211,-7256.93,0.000351,14]
[381400685,1756186239222,-245.74181391,0.00035136,2]
[381400686,1756186239400,-508.65118243,0.00035439,24]
[381400687,1756186239457,-1052.56,0.000355,7]
[381400688,1756186239467,-168.0,0.00035724,7]
[381400689,1756186239476,-168.0,0.00035865,2]
[381400690,1756186239485,-168.0,0.00036046,2]
[381400691,1756186239494,-168.0,0.00036052,2]
[381400692,1756186239503,-199.0,0.00036064,120]
[381400694,1756186239512,-168.0,0.00036131,7]
[381400697,1756186239521,-1247.42,0.00036164,120]
[381400699,1756186239531,-168.0,0.00036282,2]
[381400700,1756186239540,-201.93286099,0.00036395,2]
[381400701,1756186239549,-168.0,0.000364,2]
[381400702,1756186239559,-168.0,0.00036461,2]
[381400703,1756186239568,-168.0,0.00036532,7]
[381400704,1756186239578,-236.92,0.000366,7]
[381400705,1756186239587,-20039.1627005,0.00036952,3]
[381400706,1756186239597,-217.18350301,0.00036952,3]
[381400707,1756186239606,-845.07960918,0.00036962,3]
[381400708,1756186239615,-232.53539143,0.00036962,3]
[381400709,1756186239624,-977.944,0.00036972,2]
[381400710,1756186239634,-2165.389,0.00036972,2]
[381400711,1756186239643,-642.583,0.00036972,2]
[381400712,1756186239652,-409.0,0.00036972,2]
[381400713,1756186239661,-168.0,0.0003698,7]
[381400714,1756186239670,-160.0,0.00037004,4]
[381400715,1756186239680,-447.0,0.00037082,2]
[381400716,1756186239689,-508.65118243,0.00037166,28]
[381400717,1756186239698,-7256.93,0.000374,14]
[381400718,1756186239707,-168.0,0.00037509,2]
[381400719,1756186239716,-209.40437684,0.00037764,2]
[381400720,1756186239725,-1247.42,0.00037808,120]
[381400721,1756186239735,-7674.91,0.000379,14]
[381400722,1756186239745,-160.0,0.00038,30]
[381400723,1756186239756,-1020.93801733,0.00038097,2]
[381400724,1756186239766,-168.0,0.00038126,2]
[381400725,1756186239775,-1052.56,0.000382,7]
[381400726,1756186239784,-200.0,0.00038234,120]
[381400727,1756186239793,-153.0,0.00038318,30]
[381400728,1756186239803,-153.0,0.00038318,30]
[381400729,1756186239812,-153.0,0.00038318,30]
[381400730,1756186239821,-700.0,0.00038355,7]
[381400731,1756186239831,-500.0,0.00038356,14]
[381400732,1756186239840,-168.0,0.00038404,2]
[381400733,1756186239850,-168.0,0.00038549,2]
[381400734,1756186239860,-168.0,0.00038592,7]
[381400735,1756186239869,-20039.1627005,0.0003861,3]
[381400736,1756186239878,-500.0,0.0003863,14]
[381400737,1756186239888,-168.0,0.0003888,2]
[381400738,1756186239897,-508.65118243,0.00038892,32]
[381400739,1756186239906,-236.92,0.000389,7]
[381400740,1756186239917,-500.0,0.00038904,14]
[381400741,1756186239927,-168.0,0.00039038,7]
[381400742,1756186239936,-160.0,0.00039118,5]
[381400743,1756186239945,-217.15233878,0.00039133,2]
[381400744,1756186239956,-700.0,0.00039177,7]
[381400745,1756186239965,-500.0,0.00039178,14]
[381400747,1756186239974,-7256.93,0.000392,14]
[381400748,1756186239983,-236976.64872909,0.000394,120]
[381400750,1756186240675,-189.31696264,0.00031672,2]
[381400753,1756186243137,-43.21842879,0.00031672,2]
[381400754,1756186243147,-1000.0,0.00035026,2]
[381400755,1756186243157,-1000.0,0.00035026,2]
[381400757,1756186243166,-1000.0,0.00035026,2]
[381400759,1756186243177,-1299.63915134,0.000394,120]
[381400760,1756186243188,-1917.7574438,0.000394,120]
[381400772,1756186246144,-199.0,0.000309,120]
[381400773,1756186246154,-151.0,0.00035,7]
[381400774,1756186246409,-3450.84757105,0.000394,120]
[381400775,1756186246439,-1917.2,0.000394,120]
[381400776,1756186246630,-1374.35,0.000394,120]
[381400777,1756186248397,5000.0,0.000281,2]
[381400784,1756186407574,2265.32220564,0.000252,10]
[381400785,1756186414393,336.69648131,0.000199,2]
[381400786,1756186414848,336.69648105,0.00021627,2]
[381400787,1756186414956,336.69648105,0.00023353,2]
[381400789,1756186422912,336.69648105,0.0002508,2]
[381400790,1756186423062,336.69648105,0.00026806,6]
[381400791,1756186424174,-152.39672156,0.00028533,10]
[381400792,1756186428181,-184.29975949,0.00028533,10]
[381400794,1756186432242,-160.0,0.00028433,10]
[381400795,1756186434414,-39.0,0.00028433,10]
[381400796,1756186448298,496.64660076,0.000281,2]
[381400797,1756186448320,4160.32002615,0.000281,2]
[381400799,1756186458543,5000.0,0.000281,2]
[381400800,1756186472363,839.68997385,0.000281,2]
[381400801,1756186472386,963.04701952,0.000281,2]
[381400802,1756186481945,5000.0,0.000281,2]
[381400803,1756186500195,4036.96298048,0.000281,2]
[381400804,1756186500220,963.03701952,0.000281,2]
[381400806,1756186602167,305.58346118,0.000199,2]
[381400807,1756186602283,305.58346099,0.00021627,2]
[381400808,1756186602412,305.58346099,0.00023353,2]
[381400809,1756186602520,305.58346099,0.0002508,2]
[381400810,1756186602641,305.58346099,0.00026806,6]
[381400811,1756186603701,-257.01288172,0.00028533,10]
[381400812,1756186608359,-152.0,0.00028433,10]
[381400813,1756186610504,-47.0,0.00028433,10]
[381400814,1756186610534,-48.57057927,0.00028533,10]
[381400815,1756186702771,-500.0,0.00028567,22]
[381400816,1756186706343,-231.44574241,0.00028567,22]
[381400817,1756186709996,-352.9068677,0.00028567,22]
[381400818,1756186712276,-172.47699798,0.00028567,22]
[381400819,1756186779266,292.95415152,0.000199,2]
[381400820,1756186779380,292.95415128,0.00021627,2]
[381400821,1756186779507,292.95415128,0.00023353,2]
[381400822,1756186779613,292.95415128,0.0002508,2]
[381400823,1756186779716,292.95415128,0.00026806,6]
[381400824,1756186780783,-243.17039191,0.00028533,10]
[381400825,1756186783502,-49.78375937,0.00028533,10]
[381400829,1756186900432,166.025535,0.00013699,2]
[381401062,1756186958233,294.83191974,0.000199,2]
[381401063,1756186958356,294.83191953,0.00021627,2]
[381401064,1756186958510,294.83191953,0.00023353,2]
[381401065,1756186958659,294.83191953,0.0002508,2]
[381401066,1756186958805,294.83191953,0.00026806,6]
[381401067,1756186960199,-199.0,0.00028433,10]
[381401068,1756186960229,-79.63624063,0.00028533,10]
[381401069,1756186963581,-215.1956789,0.00028533,10]
[381401903,1756187040431,-300.0,0.0003174,60]
[381401904,1756187040483,-289.0,0.0003174,60]
[381401905,1756187040528,-289.0,0.0003174,60]
[381401906,1756187040576,-86659.65736553,0.00033,30]
[381401907,1756187040618,-529.4218694,0.00033,30]
[381401908,1756187040662,-1095.64,0.00034999,120]
[381401909,1756187040704,-1095.64,0.00036643,120]
[381401910,1756187040745,-153.0,0.00037937,30]
[381401911,1756187040787,-153.0,0.00037937,30]
[381401912,1756187040831,-153.0,0.00037943,30]
[381401913,1756187040872,-153.0,0.00037943,30]
[381401914,1756187041133,-153.0,0.00037943,30]
[381401915,1756187041174,-153.0,0.00037943,30]
[381401916,1756187041213,-153.0,0.00037949,30]
[381401917,1756187041252,-153.0,0.00037949,30]
[381401918,1756187041293,-158.0,0.00038,40]
[381401919,1756187041337,-158.0,0.00038,45]
[381401920,1756187041376,-158.0,0.00038,31]
[381401921,1756187041417,-1095.64,0.00038287,120]
[381401922,1756187041463,-294.83191953,0.00038892,32]
[381401923,1756187041508,-199.0,0.000393,120]
[381401924,1756187041548,-24382.16257278,0.000394,120]
[381401925,1756187041586,-529.4218694,0.000394,120]
[381401926,1756187041627,-157.0,0.000395,120]
[381401927,1756187041667,-151.0,0.000399,30]
[381401928,1756187041706,-151.0,0.000399,30]
[381401929,1756187041745,-151.0,0.000399,30]
[381401930,1756187041786,-151.0,0.000399,30]
[381401931,1756187041827,-196.456346,0.000399,30]
[381401932,1756187041868,-151.0,0.000399,30]
[381401933,1756187041908,-152.074567,0.000399,30]
[381401934,1756187041947,-151.0,0.000399,30]
[381401935,1756187041986,-151.0,0.000399,30]
[381401936,1756187042024,-151.0,0.000399,30]
[381401937,1756187042064,-151.0,0.000399,30]
[381401938,1756187042104,-151.0,0.000399,30]
[381401939,1756187042147,-151.0,0.000399,30]
[381401940,1756187042188,-151.0,0.000399,30]
[381401941,1756187042228,-151.0,0.000399,30]
[381401942,1756187042270,-151.0,0.000399,30]
[381401943,1756187042310,-151.000001,0.000399,30]
[381401944,1756187042353,-151.0,0.000399,30]
[381401945,1756187042396,-222.066546,0.000399,30]
[381401946,1756187042444,-151.0,0.000399,30]
[381401947,1756187042487,-151.0,0.000399,30]
[381401948,1756187042529,-151.0,0.000399,30]
[381401949,1756187042569,-151.0,0.000399,30]
[381401950,1756187042612,-151.0,0.000399,30]
[381401951,1756187042658,-151.0,0.000399,30]
[381401952,1756187042700,-151.0,0.000399,30]
[381401953,1756187042744,-231.528458,0.000399,30]
[381401954,1756187042793,-151.0,0.000399,30]
[381401955,1756187042837,-170.239004,0.000399,30]
[381401956,1756187042881,-151.0,0.000399,30]
[381401957,1756187042926,-151.0,0.000399,30]
[381401958,1756187042971,-151.0,0.000399,30]
[381401959,1756187043018,-151.0,0.000399,30]
[381401960,1756187043067,-151.0,0.000399,30]
[381401961,1756187043113,-161.512589,0.000399,30]
[381401962,1756187043160,-151.0,0.000399,30]
[381401963,1756187043207,-151.0,0.000399,30]
[381401964,1756187043253,-151.0,0.000399,30]
[381401965,1756187043299,-193.279078,0.000399,30]
[381401966,1756187043346,-151.0,0.000399,30]
[381401967,1756187043393,-151.0,0.000399,30]
[381401968,1756187043443,-151.0,0.000399,30]
[381401969,1756187043488,-151.0,0.000399,30]
[381401970,1756187043534,-151.0,0.000399,30]
[381401971,1756187043582,-151.0,0.000399,30]
[381401972,1756187043630,-151.0,0.000399,30]
[381401973,1756187043674,-151.0,0.000399,30]
[381401974,1756187043719,-151.0,0.000399,30]
[381401975,1756187043764,-1095.64,0.00039931,120]
[381401976,1756187043814,-944.0,0.0004,120]
[381401977,1756187043870,-2005.53,0.0004,60]
[381401978,1756187043916,-82983.76456661,0.0004,30]
[381401979,1756187043962,-401.11854901,0.0004,30]
[381401980,1756187044009,-600.0,0.00040032,30]
[381401981,1756187044055,-500.0,0.0004009,30]
[381401982,1756187044101,-500.0,0.0004009,30]
[381401983,1756187044146,-500.0,0.0004009,30]
[381401984,1756187044190,-500.0,0.0004009,30]
[381401985,1756187044234,-500.0,0.00040325,30]
[381401986,1756187044278,-500.0,0.00040339,30]
[381401987,1756187044324,-500.0,0.0004036,30]
[381401988,1756187044370,-203.0,0.0004042,55]
[381401989,1756187044418,-1400.0,0.00040524,30]
[381401990,1756187044461,-500.0,0.00040547,120]
[381401991,1756187044503,-500.0,0.00040547,120]
[381401992,1756187044545,-500.0,0.00040547,120]
[381401993,1756187044587,-500.0,0.00040547,120]
[381401994,1756187044630,-500.0,0.00040547,120]
[381401995,1756187044673,-500.0,0.00040547,120]
[381401996,1756187044716,-500.0,0.00040547,120]
[381401997,1756187044761,-500.0,0.00040547,120]
[381401998,1756187044805,-500.0,0.00040547,120]
[381401999,1756187044849,-500.0,0.00040547,120]
[381402000,1756187044894,-500.0,0.00040547,120]
[381402001,1756187044942,-500.0,0.00040547,120]
[381402002,1756187044994,-500.0,0.00040547,120]
[381402003,1756187045061,-500.0,0.00040547,120]
[381402004,1756187045124,-500.0,0.00040547,120]
[381402005,1756187045170,-619.54437461,0.00040547,120]
[381402006,1756187045212,-151.0,0.00040547,30]
[381402007,1756187045256,-150.0,0.000406,44]
[381402008,1756187045307,-294.83191953,0.00040619,36]
[381402009,1756187045351,-503.86887275,0.0004076,30]
[381402010,1756187045394,-500.0,0.0004076,30]